bitfinex/quotes_ETHUSD_20240602
["timestamp","ask_amount","ask_price","bid_price","bid_amount"]
[1717352153488,0.10043292,3769.9,3769.1,1.351]
[1717352153851,8.16550901,3770.1,3769.1,1.351]
[1717352154360,0.10038612,3770.0,3769.1,1.351]
[1717352156160,0.10038612,3770.0,3769.1,4.00411]
[1717352156482,0.75,3769.8,3769.1,4.00411]
[1717352161423,0.75,3769.8,3769.1,1.351]
[1717352161561,0.75,3769.8,3769.0,4.0396]
[1717352161765,2.65294,3769.4,3768.5,4.0396]
[1717352161978,2.92827261,3769.4,3768.5,4.0396]
[1717352162263,0.10064555,3769.3,3768.5,4.0396]
[1717352162667,0.75,3768.9,3768.5,4.0396]
[1717352163074,0.10034359,3768.8,3768.5,4.0396]
[1717352163765,2.92827261,3769.4,3768.5,4.0396]
[1717352164009,0.10034359,3768.7,3768.5,4.0396]
[1717352164190,1.01982726,3769.3,3768.0,1.351]
[1717352164393,0.10034359,3768.6,3768.0,1.351]
[1717352164571,3.40331,3768.9,3767.9,4.0396]
[1717352164770,0.10035211,3768.5,3767.9,4.0396]
[1717352165010,0.75,3768.5,3767.9,4.0396]
[1717352165209,0.10035211,3768.4,3767.9,4.0396]
[1717352165906,0.75,3768.5,3767.9,4.0396]
[1717352166115,0.10026278,3768.3,3767.9,4.0396]
[1717352166276,0.75,3768.5,3767.9,4.0396]
[1717352166481,0.10026278,3768.2,3767.6,1.351]
[1717352166681,2.65346,3768.7,3767.6,1.351]
[1717352166922,0.75,3768.2,3767.6,1.351]
[1717352167218,0.75,3768.2,3767.4,6.98608]
[1717352167420,0.10016492,3768.1,3767.4,6.98608]
[1717352168794,0.75,3768.2,3767.4,6.98608]
[1717352168994,0.10006709,3768.0,3767.4,6.98608]
[1717352169194,0.992346,3768.6,3767.4,6.98608]
[1717352169435,0.992346,3768.6,3767.4,4.3318]
[1717352169436,0.10006709,3767.9,3767.4,4.3318]
[1717352169744,0.75,3767.8,3767.0,4.00559]
[1717352172707,0.75,3767.8,3767.0,1.351]
[1717352173105,0.09990966,3767.7,3767.0,1.351]
[1717352174442,0.09990966,3767.7,3767.0,1.40409143]
[1717352174610,11.5028,3768.3,3767.0,1.40409143]
[1717352174808,0.09951818,3767.6,3767.5,6.98606]
[1717352175110,7.27,3769.1,3767.9,2.65394]
[1717352175309,0.27533261,3769.4,3767.9,2.65394]
[1717352175627,0.75,3768.6,3767.9,2.65394]
[1717352175801,3.6891498,3769.2,3767.9,2.65394]
[1717352176006,0.75,3768.7,3767.9,2.65394]
[1717352176845,0.09631154,3768.6,3767.9,2.65394]
[1717352177345,3.59283826,3769.2,3767.9,2.65394]
[1717352177540,0.74843363,3769.1,3767.9,2.65394]
[1717352177719,0.75,3768.7,3767.9,2.65394]
[1717352178244,0.09631154,3768.6,3767.9,2.65394]
[1717352178540,0.09631154,3768.6,3767.5,5.6828]
[1717352178541,3.0,3769.6,3768.2,4.3318]
[1717352178750,0.75,3768.7,3768.6,2.65349]
[1717352178961,7.27,3769.7,3768.2,4.3318]
[1717352178962,7.27,3769.7,3768.2,6.98558]
[1717352179166,0.82403907,3769.6,3768.4,2.65361]
[1717352179307,0.75,3769.3,3768.5,1.351]
[1717352179508,0.09703484,3769.2,3768.5,1.351]
[1717352185029,0.09703484,3769.2,3768.4,2.65361]
[1717352185329,0.09703484,3769.2,3768.4,4.00461]
[1717352199994,0.09703484,3769.2,3768.4,1.351]
[1717352200203,0.44703932,3769.2,3768.4,1.351]
[1717352201470,2.65327,3769.0,3768.0,1.351]
[1717352201671,4.017,3768.9,3767.6,4.00514]
[1717352202004,3.40337,3768.8,3767.6,4.00514]
[1717352202378,2.65353,3768.6,3767.6,4.00514]
[1717352202782,0.09700425,3768.5,3767.6,4.00514]
[1717352205769,2.65365,3768.4,3767.6,1.351]
[1717352205985,2.92871542,3768.4,3767.6,1.351]
[1717352206188,0.09700425,3768.3,3767.6,1.351]
[1717352206880,2.65384,3768.2,3767.6,1.351]
[1717352207201,0.75,3768.1,3767.2,1.351]
[1717352207421,0.09656185,3768.0,3767.2,1.351]
[1717352208008,2.65384,3768.2,3767.2,1.351]
[1717352208213,0.09656185,3767.9,3767.2,1.351]
[1717352208426,0.75,3768.1,3767.2,1.351]
[1717352208712,0.09656185,3767.8,3767.2,1.351]
[1717352208911,0.75,3768.1,3767.2,1.351]
[1717352209208,2.94673054,3768.2,3767.2,1.351]
[1717352209407,0.09656185,3768.1,3767.2,1.351]
[1717352209610,0.84656185,3768.1,3767.2,4.00548]
[1717352209812,0.84656185,3768.1,3767.2,2.65448]
[1717352219230,4.2658,3768.0,3767.1,1.351]
[1717352219631,0.09650228,3767.9,3767.1,1.351]
[1717352220732,0.87311651,3767.9,3766.8,2.6547]
[1717352220936,2.65407,3767.8,3766.5,4.00597]
[1717352221258,2.65429,3767.5,3766.5,4.00597]
[1717352221666,2.65442,3767.3,3766.5,4.00597]
[1717352222162,0.84610651,3767.2,3766.5,4.00597]
[1717352223265,0.09610651,3767.2,3766.5,4.00597]
[1717352224253,0.84610651,3767.2,3766.5,4.00597]
[1717352224840,0.84610651,3767.2,3766.5,1.351]
[1717352225046,2.65456,3767.1,3766.5,1.351]
[1717352225439,0.09612354,3767.0,3766.0,1.351]
[1717352225664,2.65535,3766.0,3764.6,4.2726]
[1717352225829,2.65535,3766.0,3764.6,4.68015332]
[1717352226469,0.09589798,3765.9,3764.7,2.70935571]
[1717352226780,0.09589798,3765.9,3765.1,4.3768]
[1717352226983,0.09589798,3765.9,3765.7,2.6555]
[1717352227263,7.0451,3767.5,3765.9,4.3768]
[1717352227464,7.0451,3767.5,3766.4,1.351]
[1717352227622,2.65447,3767.3,3765.9,4.3768]
[1717352227823,2.65447,3767.3,3766.1,1.351]
[1717352228024,4.3908,3767.5,3766.1,1.351]
[1717352228025,2.65457,3767.1,3766.1,1.351]
[1717352228255,3.67925447,3767.1,3766.1,1.351]
[1717352228424,0.09227468,3767.0,3766.1,1.351]
[1717352228943,2.65474,3766.9,3766.1,1.351]
[1717352229353,2.65474,3766.9,3765.7,7.0323]
[1717352229354,0.09227468,3766.8,3765.7,7.0323]
[1717352229535,0.09227468,3766.8,3765.9,1.351]
[1717352230431,0.09227468,3766.8,3766.3,1.351]
[1717352230849,2.65402,3767.9,3766.7,1.351]
[1717352231052,2.65402,3767.9,3767.1,1.351]
[1717352231053,0.75,3767.4,3767.1,1.351]
[1717352231261,2.65402,3767.9,3767.1,1.351]
[1717352231459,3.355862,3767.9,3767.1,1.351]
[1717352231661,3.355862,3767.9,3766.5,7.00734]
[1717352231662,0.75,3767.5,3766.9,2.65466]
[1717352231977,2.65368,3768.4,3767.4,1.351]
[1717352232173,2.65368,3768.4,3767.9,1.351]
[1717352232534,0.75,3768.3,3767.9,1.351]
[1717352233060,0.09323234,3768.2,3767.9,1.351]
[1717352233261,0.09323234,3768.2,3768.1,1.351]
[1717352233446,2.65333,3768.9,3768.1,1.351]
[1717352233649,7.27,3769.0,3768.5,1.351]
[1717352233867,0.75,3768.7,3768.5,1.351]
[1717352234052,7.27,3769.0,3768.5,1.351]
[1717352234053,0.09354714,3768.9,3768.5,1.351]
[1717352234251,7.27,3769.0,3768.5,1.351]
[1717352234455,0.09354714,3768.8,3768.5,1.351]
[1717352234772,7.27,3769.0,3768.5,1.351]
[1717352234960,7.27,3769.0,3768.0,0.1351]
[1717352234961,0.09354714,3768.7,3768.2,2.65372]
[1717352235134,7.27,3769.0,3768.7,1.351]
[1717352235472,2.65298,3769.4,3768.7,1.351]
[1717352235776,0.75,3769.1,3768.7,1.351]
[1717352235936,2.65298,3769.4,3768.7,1.351]
[1717352236276,0.75,3769.1,3768.7,1.351]
[1717352237538,0.75,3769.1,3768.3,1.351]
[1717352238577,0.75,3769.1,3768.4,0.05306282]
[1717352239176,0.75,3769.1,3768.7,1.351]
[1717352239350,0.75,3769.1,3767.5,2.65427]
[1717352239351,2.65357,3768.6,3767.5,2.65427]
[1717352239563,2.65357,3768.6,3767.2,4.3524]
[1717352239753,2.65357,3768.6,3767.2,1.351]
[1717352240049,2.65357,3768.6,3767.6,1.351]
[1717352240254,0.75,3768.2,3767.6,1.351]
[1717352240586,2.65357,3768.6,3767.6,1.351]
[1717352240996,2.65373,3768.3,3767.2,1.351]
[1717352241337,0.75,3768.1,3767.2,1.351]
[1717352241692,2.65393,3768.0,3767.2,1.351]
[1717352241996,2.65393,3768.0,3766.9,1.351]
[1717352244177,5.1144,3768.1,3766.9,1.351]
[1717352244178,2.65409,3767.8,3766.9,1.351]
[1717352244357,2.65423,3767.6,3766.5,1.351]
[1717352245875,0.75,3767.3,3766.5,1.351]
[1717352248211,0.088943,3767.2,3766.5,1.351]
[1717352251120,0.088943,3767.2,3765.7,3.0]
[1717352251121,2.65465,3767.0,3765.3,3.0]
[1717352251287,0.75,3767.0,3766.7,1.351]
[1717352251486,2.6541,3767.8,3766.7,1.351]
[1717352251705,2.6541,3767.8,3767.6,1.351]
[1717352251887,3.4041,3767.8,3767.6,1.351]
[1717352252091,2.6541,3767.8,3767.6,1.351]
[1717352253088,2.65382,3768.2,3767.6,1.351]
[1717352253422,3.0,3768.1,3767.6,1.351]
[1717352253626,0.75,3768.0,3767.6,1.351]
[1717352254121,2.65382,3768.2,3767.6,1.351]
[1717352254432,7.27,3768.4,3768.0,1.351]
[1717352256227,2.65353,3768.6,3768.0,1.351]
[1717352256228,0.75,3768.5,3768.0,1.351]
[1717352257195,1.090353,3768.5,3768.0,1.351]
[1717352258112,0.75,3768.5,3768.0,1.351]
[1717352263134,0.08431745,3768.4,3768.0,1.351]
[1717352263753,2.65353,3768.6,3768.0,1.351]
[1717352263967,0.08431745,3768.3,3768.0,1.351]
[1717352264148,2.65353,3768.6,3768.0,1.351]
[1717352264472,0.75,3768.5,3768.0,1.351]
[1717352264660,0.83431745,3768.5,3768.0,1.351]
[1717352267783,0.83431745,3768.5,3768.0,4.00487]
[1717352267942,0.08431745,3768.5,3768.0,4.00487]
[1717352268145,2.65338,3768.8,3768.0,1.351]
[1717352268478,0.08433446,3768.4,3768.0,1.351]
[1717352268777,0.08433446,3768.7,3768.0,1.351]
[1717352269081,0.834377,3768.6,3768.0,1.351]
[1717352270514,2.65358,3768.5,3768.0,1.351]
[1717352270874,0.084377,3768.4,3768.0,1.351]
[1717352275818,0.084377,3768.4,3768.2,2.65372]
[1717352276203,5.65308,3769.2,3768.2,2.65372]
[1717352276403,0.75,3768.9,3768.4,1.351]
[1717352277111,0.08436847,3768.8,3768.4,1.351]
[1717352277316,0.75,3769.0,3768.4,1.351]
[1717352277511,0.08436847,3768.7,3768.4,1.351]
[1717352277726,3.0,3769.2,3768.5,2.65357]
[1717352277924,0.08436847,3768.6,3768.5,2.65357]
[1717352278089,2.65318,3769.1,3768.4,1.351]
[1717352278293,0.0846024,3768.6,3768.4,1.351]
[1717352278593,2.65318,3769.1,3768.4,1.351]
[1717352278819,0.0846024,3768.5,3768.4,1.351]
[1717352278985,2.65318,3769.1,3768.4,1.351]
[1717352279300,0.75,3769.0,3768.4,1.351]
[1717352279507,0.8346024,3769.0,3768.4,1.351]
[1717352281729,0.8346024,3769.0,3768.9,1.351]
[1717352282832,0.0846024,3769.0,3768.9,1.351]
[1717352283337,5.65271,3769.8,3768.9,1.351]
[1717352283501,0.08465344,3769.0,3768.9,1.351]
[1717352283700,5.65271,3769.8,3768.9,1.351]
[1717352283899,0.75,3769.6,3768.9,1.351]
[1717352284332,2.65288,3769.5,3768.7,2.65337]
[1717352284542,2.73654883,3769.5,3768.6,2.65346]
[1717352284813,0.08366883,3769.5,3769.2,2.65307]
[1717352285458,0.08386865,3769.4,3769.2,2.65307]
[1717352285681,0.08386865,3769.4,3769.3,5.6423]
[1717352285989,0.08249705,3769.4,3769.3,5.6423]
[1717352286388,2.65229,3770.4,3769.4,2.65293]
[1717352286556,0.75,3770.0,3769.4,2.65293]
[1717352286746,2.6524,3770.2,3769.4,2.65293]
[1717352287141,0.75,3770.0,3769.4,2.65293]
[1717352287475,0.75,3770.0,3769.3,5.6423]
[1717352287842,0.08057359,3769.9,3769.3,5.6423]
[1717352288238,2.6524,3770.2,3769.3,5.6423]
[1717352288479,0.75,3770.0,3769.3,5.6423]
[1717352288877,0.07991965,3769.9,3769.3,5.6423]
[1717352289384,2.6524,3770.2,3769.3,5.6423]
[1717352289684,0.75,3770.0,3769.3,5.6423]
[1717352290569,0.07991965,3769.9,3769.3,5.6423]
[1717352290951,2.6524,3770.2,3769.3,5.6423]
[1717352291273,0.75,3770.0,3769.3,5.6423]
[1717352291456,0.07936779,3769.9,3769.3,5.6423]
[1717352291961,2.6524,3770.2,3769.3,5.6423]
[1717352292162,0.07870112,3769.8,3769.3,5.6423]
[1717352292477,0.07870112,3769.7,3769.3,5.6423]
[1717352292850,0.07870112,3769.6,3769.3,5.6423]
[1717352293278,2.6524,3770.2,3769.3,5.6423]
[1717352293593,0.75,3770.0,3769.3,5.6423]
[1717352294102,0.75,3770.0,3769.4,2.65293]
[1717352294252,0.07801319,3769.9,3769.4,2.65293]
[1717352294649,2.6524,3770.2,3769.4,2.65293]
[1717352294891,0.07801319,3769.8,3769.4,2.65293]
[1717352295066,2.6524,3770.2,3769.4,2.65293]
[1717352295263,3.0,3770.3,3769.8,1.351]
[1717352295468,3.0,3770.5,3769.8,1.351]
[1717352295677,0.07666285,3770.2,3769.8,1.351]
[1717352295900,2.65224,3770.4,3769.8,1.4861]
[1717352296101,0.07532952,3770.1,3769.8,1.4861]
[1717352296268,3.0,3770.3,3769.8,1.4861]
[1717352296595,0.07278612,3770.2,3769.8,1.4861]
[1717352296798,3.0,3770.3,3769.8,1.4861]
[1717352296981,0.07145279,3770.1,3769.8,1.4861]
[1717352297182,3.0,3770.3,3769.8,1.4861]
[1717352297388,0.07011945,3770.0,3769.8,1.4861]
[1717352297614,3.0,3770.3,3769.8,1.351]
[1717352297782,3.0,3770.3,3769.4,2.65293]
[1717352297991,0.06878612,3770.2,3769.7,1.351]
[1717352300295,2.72121612,3770.2,3769.4,2.65293]
[1717352300485,2.72121612,3770.2,3769.5,1.351]
[1717352302998,2.6526,3769.9,3769.5,1.351]
[1717352303402,3.0,3770.3,3769.6,0.1351]
[1717352303403,2.65238,3770.2,3769.6,0.1351]
[1717352303701,0.06065435,3769.8,3769.5,1.351]
[1717352303918,2.65238,3770.2,3769.9,1.351]
[1717352305036,2.65217,3770.5,3769.9,1.351]
[1717352307094,3.0,3770.7,3769.9,4.00358]
[1717352307288,3.0,3770.8,3769.9,4.00358]
[1717352307489,2.65195,3770.9,3770.3,1.351]
[1717352307687,2.65168,3771.2,3770.4,2.65223]
[1717352307902,2.65168,3771.2,3770.7,1.351]
[1717352308223,0.04588291,3771.1,3770.7,1.351]
[1717352309923,0.04588291,3771.1,3770.4,2.65223]
[1717352309924,3.04588291,3771.1,3770.4,2.65223]
[1717352312910,3.04588291,3771.1,3770.2,1.351]
[1717352314199,2.65184,3771.0,3770.0,2.65245]
[1717352314405,7.31,3770.9,3769.8,4.0843]
[1717352314642,4.03500462,3770.8,3769.7,1.351]
[1717352314946,4.07505079,3770.8,3769.7,1.351]
[1717352315103,2.65203,3770.7,3769.7,1.351]
[1717352315446,0.03995694,3770.6,3769.7,1.351]
[1717352316875,2.6522,3770.5,3769.7,1.351]
[1717352317223,0.03976147,3770.4,3769.7,1.351]
[1717352323376,0.03976147,3770.4,3768.4,3.04991538]
[1717352323377,2.6526,3769.9,3768.3,7.27]
[1717352323533,2.6526,3769.9,3769.1,1.351]
[1717352323938,0.03976147,3769.8,3769.1,1.351]
[1717352326367,0.03976147,3769.8,3768.9,2.65328]
[1717352326575,0.03976147,3769.8,3769.2,1.351]
[1717352327871,2.65275,3769.7,3768.9,2.65328]
[1717352328169,2.65275,3769.7,3768.9,4.00428]
[1717352328373,0.03921319,3769.6,3768.9,1.351]
[1717352328576,2.65275,3769.7,3768.9,1.351]
[1717352328886,0.03921319,3769.5,3768.9,1.351]
[1717352329180,2.65275,3769.7,3768.9,1.4861]
[1717352329363,0.03921319,3769.4,3768.9,1.4861]
[1717352329738,2.65275,3769.7,3768.9,1.4861]
[1717352329934,0.03921319,3769.3,3768.9,1.4861]
[1717352330134,2.65275,3769.7,3768.9,1.4861]
[1717352330450,0.03921319,3769.2,3768.9,1.4861]
[1717352330777,2.65275,3769.7,3768.9,1.4861]
[1717352330949,0.03921319,3769.1,3768.9,1.4861]
[1717352331153,2.65275,3769.7,3768.9,1.351]
[1717352331368,0.03905589,3769.0,3768.9,1.351]
[1717352331672,2.65275,3769.7,3768.9,1.351]
[1717352332073,0.03905589,3769.6,3768.9,1.351]
[1717352332573,2.65275,3769.7,3768.9,1.351]
[1717352332773,0.03905589,3769.5,3768.9,1.351]
[1717352333082,2.65275,3769.7,3768.9,1.351]
[1717352333581,0.03905589,3769.6,3768.9,1.351]
[1717352333877,2.65275,3769.7,3768.9,1.351]
[1717352334182,0.03905589,3769.6,3768.9,1.351]
[1717352334484,2.65275,3769.7,3768.9,1.351]
[1717352334777,0.03905589,3769.6,3768.9,1.351]
[1717352334976,2.65275,3769.7,3768.9,1.351]
[1717352335152,0.03905589,3769.5,3768.9,1.351]
[1717352335352,2.65275,3769.7,3768.9,1.351]
[1717352335548,0.03905589,3769.4,3768.9,1.351]
[1717352335733,2.65275,3769.7,3768.9,1.351]
[1717352335941,2.65275,3769.7,3769.6,0.562]
[1717352338191,2.69180589,3769.7,3769.6,0.562]
[1717352341774,2.69180589,3769.7,3768.8,2.65335]
[1717352341999,4.3772,3769.6,3769.5,0.562]
[1717352342359,0.03905589,3769.6,3769.5,0.562]
[1717352343650,2.6529,3769.5,3768.5,2.65356]
[1717352343884,2.6529,3769.5,3769.4,0.562]
[1717352351795,2.6529,3769.5,3768.7,2.65337]
[1717352352097,2.6529,3769.5,3769.3,0.562]
[1717352352591,0.03906865,3769.4,3769.3,0.562]
[1717352354096,2.65307,3769.3,3768.4,4.1238]
[1717352354257,2.65307,3769.3,3769.2,0.562]
[1717352354662,2.69213865,3769.3,3769.2,0.562]
[1717352362087,2.69213865,3769.3,3767.8,2.65401]
[1717352362088,2.6534,3768.8,3767.8,2.65401]
[1717352362285,2.6534,3768.8,3767.6,4.3961]
[1717352362286,2.6534,3768.8,3768.7,0.562]
[1717352368234,2.69206468,3768.8,3768.7,0.562]
[1717352371493,2.69206468,3768.8,3768.0,2.65387]
[1717352371702,2.69206468,3768.8,3768.7,0.562]
[1717352372233,2.49206468,3768.8,3768.7,0.562]
[1717352373925,2.49206468,3768.8,3768.0,2.65387]
[1717352374094,2.49206468,3768.8,3768.7,0.562]
[1717352378391,2.49206468,3768.8,3768.0,2.65387]
[1717352378620,2.49206468,3768.8,3768.7,0.562]
[1717352380473,0.03866468,3768.8,3768.7,0.562]
[1717352380815,0.57365199,3769.3,3768.7,0.562]
[1717352381027,5.65296,3769.4,3769.2,0.562]
[1717352381028,2.65296,3769.4,3769.2,0.562]
[1717352383153,0.03874973,3769.3,3769.2,0.562]
[1717352383915,0.03874973,3769.3,3767.4,7.27]
[1717352383916,7.00612,3769.2,3768.3,2.6537]
[1717352384146,2.65312,3769.2,3769.1,0.562]
[1717352384546,3.98436459,3769.2,3769.1,0.562]
[1717352385568,2.69205259,3769.2,3769.1,0.562]
[1717352386029,2.69205259,3769.2,3769.0,0.562]
[1717352386454,2.69205259,3769.2,3768.1,4.3634]
[1717352386663,2.65322,3769.0,3768.9,0.562]
[1717352387045,2.69189746,3769.0,3768.9,0.562]
[1717352389340,0.03867746,3769.0,3768.9,0.562]
[1717352389746,0.57363204,3769.2,3768.9,0.562]
[1717352389956,0.03863494,3769.0,3768.3,2.65368]
[1717352390276,0.57363204,3769.2,3768.9,0.562]
[1717352390578,0.57363204,3769.2,3769.1,0.562]
[1717352391570,2.6532,3769.1,3768.9,0.562]
[1717352393663,2.6532,3769.1,3768.1,4.3634]
[1717352393857,2.6532,3769.1,3768.8,0.562]
[1717352394186,2.65329,3768.9,3768.8,0.562]
[1717352395414,2.65329,3768.9,3766.4,0.55335713]
[1717352395415,4.2321,3768.8,3766.4,0.55335713]
[1717352395543,4.2321,3768.8,3766.0,0.41537013]
[1717352395544,4.7941,3767.5,3766.0,0.41537013]
[1717352395743,0.57367428,3767.4,3766.0,0.41537013]
[1717352395945,0.57367428,3767.3,3766.0,0.41537013]
[1717352396145,0.57367428,3767.3,3767.2,0.562]
[1717352396375,2.65441,3767.4,3767.2,0.562]
[1717352398001,0.03792027,3767.3,3767.2,0.562]
[1717352398201,2.65454,3767.2,3765.7,6.99309]
[1717352398435,2.65454,3767.2,3767.0,0.562]
[1717352398752,0.03781812,3767.1,3767.0,0.562]
[1717352402259,7.27,3767.9,3767.1,4.3376]
[1717352402409,7.27,3767.9,3767.8,0.562]
[1717352402607,2.65356,3768.6,3767.8,0.562]
[1717352402912,2.65356,3768.6,3768.5,0.562]
[1717352403904,2.65356,3768.6,3767.8,1.35]
[1717352404238,2.65356,3768.6,3767.8,0.135]
[1717352408750,2.65356,3768.6,3765.7,0.26493478]
[1717352408751,4.2321,3767.7,3765.7,0.26493478]
[1717352409071,4.2321,3767.7,3765.5,4.3376]
[1717352409072,2.65495,3766.6,3765.5,4.3376]
[1717352409281,2.65495,3766.6,3765.9,1.35]
[1717352409567,2.65495,3766.6,3765.9,0.135]
[1717352409714,2.65495,3766.6,3765.9,1.35]
[1717352410061,0.03625162,3766.5,3765.9,1.35]
[1717352410951,2.65511,3766.4,3765.5,5.6876]
[1717352411338,2.65519,3766.2,3765.5,5.6876]
[1717352411740,0.03575785,3766.1,3765.5,5.6876]
[1717352412254,0.03575785,3766.1,3763.5,1.94808379]
[1717352412411,2.65595,3765.2,3764.2,1.35]
[1717352412612,0.265595,3765.1,3764.2,1.35]
[1717352412810,2.6561,3765.0,3764.2,1.35]
[1717352413006,2.6561,3765.0,3763.8,1.35]
[1717352413435,0.03467658,3764.9,3763.7,2.65689]
[1717352413763,0.03467658,3764.9,3763.8,1.35]
[1717352414114,0.03467658,3764.9,3763.7,2.65689]
[1717352414662,0.03467658,3764.9,3763.8,1.35]
[1717352415252,0.03467658,3764.9,3763.9,1.35]
[1717352415832,0.03467658,3764.9,3764.0,4.076]
[1717352418819,0.03467658,3764.9,3764.1,2.65666]
[1717352419018,0.03467658,3764.9,3764.4,1.35]
[1717352419259,2.65575,3765.5,3764.4,1.35]
[1717352419260,0.03467658,3764.8,3764.4,1.35]
[1717352419615,2.65575,3765.5,3764.4,1.35]
[1717352419812,0.03427618,3764.7,3764.4,1.35]
[1717352420355,2.65575,3765.5,3764.4,1.35]
[1717352420549,2.65575,3765.5,3764.5,0.135]
[1717352420716,0.03425488,3765.4,3764.5,0.135]
[1717352425143,0.03425488,3765.4,3764.6,2.65629]
[1717352431783,0.05795726,3765.4,3764.6,2.65629]
[1717352434545,2.65607,3765.0,3764.2,2.65656]
[1717352434989,0.057838,3764.9,3764.2,2.65656]
[1717352435947,0.057838,3764.9,3764.0,4.076]
[1717352439262,2.65618,3764.8,3763.8,2.65684]
[1717352439464,0.057838,3764.9,3763.1,3.0]
[1717352439465,2.6565,3764.4,3763.3,2.65723]
[1717352439663,2.6565,3764.4,3763.4,3.0]
[1717352439852,2.65617,3764.9,3763.6,2.65698]
[1717352440052,0.57432346,3764.8,3763.8,2.65686]
[1717352440258,0.63179077,3764.8,3763.8,2.65686]
[1717352441091,0.63179077,3764.8,3763.7,4.3532]
[1717352441092,0.63179077,3764.8,3764.1,2.65667]
[1717352441389,0.05746731,3764.8,3764.4,1.35]
[1717352441794,0.57432346,3765.3,3764.4,1.35]
[1717352442088,0.05747157,3764.7,3764.4,1.35]
[1717352442399,0.57432346,3765.3,3764.4,4.00644]
[1717352442691,0.57432346,3765.3,3764.5,4.3532]
[1717352442849,0.57432346,3765.3,3764.6,2.6563]
[1717352443049,0.05747157,3765.2,3764.6,2.6563]
[1717352444371,0.38623007,3765.2,3764.6,2.6563]
[1717352444697,0.05747157,3765.2,3764.6,2.6563]
[1717352445294,0.57418283,3765.3,3764.6,2.6563]
[1717352445794,0.05772295,3765.2,3764.6,2.6563]
[1717352447789,0.38649253,3765.2,3764.6,2.6563]
[1717352448662,2.65598,3765.1,3764.2,2.65656]
[1717352448870,0.57424412,3765.0,3764.2,2.65656]
[1717352449072,0.63191169,3765.0,3764.2,2.65656]
[1717352449396,0.99357782,3765.0,3764.2,2.65656]
[1717352450301,0.05766757,3765.0,3764.2,2.65656]
[1717352450901,0.63191255,3765.0,3764.2,2.65656]
[1717352451071,0.57424498,3765.0,3764.2,2.65656]
[1717352451472,0.57424498,3765.0,3764.4,2.65644]
[1717352451688,2.65598,3765.1,3764.4,2.65644]
[1717352452404,2.65574,3765.5,3764.4,2.65644]
[1717352452603,0.57419952,3765.4,3764.4,2.65644]
[1717352452807,2.65585,3765.3,3764.4,2.65644]
[1717352453099,0.57419952,3765.2,3764.4,2.65644]
[1717352453265,0.05554537,3765.1,3764.4,2.65644]
[1717352453465,0.32855949,3765.0,3764.4,2.65644]
[1717352453977,0.32855949,3765.0,3763.9,4.00676]
[1717352453978,0.05554537,3764.9,3763.9,4.00676]
[1717352454988,0.05554537,3764.9,3763.9,2.65676]
[1717352455188,2.65624,3764.8,3763.9,2.65676]
[1717352455506,0.5742916,3764.7,3763.9,2.65676]
[1717352455805,0.3286077,3764.6,3763.9,2.65676]
[1717352456204,0.05536617,3764.5,3763.6,1.35]
[1717352456504,0.05536617,3764.5,3763.5,11.27703]
[1717352456867,2.65647,3764.4,3763.5,9.92703]
[1717352457158,0.30404439,3764.3,3763.5,9.92703]
[1717352458280,0.30404439,3764.3,3763.5,2.65703]
[1717352458694,0.05529363,3764.2,3763.5,2.65703]
[1717352459787,0.30404439,3764.3,3763.5,2.65703]
[1717352460189,0.05529363,3764.2,3763.5,2.65703]
[1717352460583,0.30404439,3764.3,3763.5,2.65703]
[1717352460808,2.65647,3764.4,3763.5,2.65703]
[1717352461005,0.05529363,3764.2,3763.6,1.35]
[1717352461341,3.32855949,3765.0,3763.7,2.65694]
[1717352461342,2.65622,3764.8,3763.7,2.65694]
[1717352461512,0.65379292,3764.7,3763.7,2.65694]
[1717352462707,2.65635,3764.6,3763.7,2.65694]
[1717352463206,0.05531497,3764.5,3763.7,2.65694]
[1717352464509,0.05531497,3764.5,3763.8,4.256]
[1717352465548,0.05531497,3764.5,3763.9,2.65681]
[1717352466337,0.05531497,3764.5,3764.2,2.65659]
[1717352466541,2.65611,3764.9,3764.2,2.65659]
[1717352466777,0.05516563,3764.8,3764.2,2.65659]
[1717352467353,7.27,3765.2,3764.2,2.65659]
[1717352467568,0.0552467,3765.1,3764.2,2.65659]
[1717352467876,1.34341993,3765.1,3764.2,2.65659]
[1717352468781,0.0552467,3765.1,3764.5,2.65639]
[1717352468982,0.0552467,3765.1,3764.5,6.93019]
[1717352469289,0.0552467,3765.1,3764.5,2.65639]
[1717352470451,2.65577,3765.4,3764.5,2.65639]
[1717352470659,0.05540457,3765.0,3764.5,2.65639]
[1717352470941,0.05540457,3764.9,3764.5,2.65639]
[1717352471139,0.683617,3765.4,3764.1,4.2738]
[1717352471398,0.05540457,3765.3,3764.8,2.65611]
[1717352471859,2.65551,3765.8,3764.8,2.65611]
[1717352472063,0.05540457,3765.2,3764.8,2.65611]
[1717352472264,2.65551,3765.8,3764.8,2.65611]
[1717352472461,4.1804,3766.0,3765.1,2.65595]
[1717352472661,0.05540457,3765.7,3765.4,2.65575]
[1717352472955,5.65525,3766.2,3765.4,2.65575]
[1717352473154,0.05554533,3766.1,3765.4,2.65575]
[1717352473361,1.04466486,3766.1,3765.4,2.65575]
[1717352473967,1.04466486,3766.1,3765.7,2.6555]